[Event "Pashayeva Memorial Rapid 2025"]
[Site "Baku"]
[Date "2025.03.02"]
[Round "1.1"]
[White "Balajayeva, Khanim"]
[Black "Salimova, Nurgyul"]
[Result "1/2-1/2"]
[Annotator "ChessBase"]
[ECO "B10"]
[WhiteElo "2355"]
[BlackElo "2404"]
[PlyCount "155"]
[EventDate "2025.03.01"]
[EventType "tourn"]
[EventCountry "AZE"]
[SourceTitle "playchess.com"]
[Source "ChessBase"]
[SourceQuality "1"]
[TimeControl "900+10"]

1. e4 {[%emt 0:00:04]} c6 {[%emt 0:00:03]} 2. Nf3 {[%emt 0:00:05]} d5 {[%emt 0:00:02]} 3. exd5 {[%emt 0:00:06]} cxd5 {[%emt 0:00:03]} 4. Ne5 {[%emt 0:00:02]} Nc6 {[%emt 0:00:39]} 5. d4 {[%emt 0:00:03]} a6 {[%emt 0:01:15]} 6. Be2 {[%emt 0:00:23]} e6 {[%emt 0:00:26]} 7. c3 {[%emt 0:02:28]} Bd6 {[%emt 0:00:10]} 8. f4 {[%emt 0:00:23]} Nge7 {[%emt 0:00:17]} 9. O-O {[%emt 0:00:33]} f6 {[%emt 0:00:13]} 10. Nxc6 {[%emt 0:00:21]} bxc6 {[%emt 0:00:11]} 11. Bd3 {[%emt 0:00:18]} O-O {[%emt 0:00:31]} 12. Nd2 {[%emt 0:00:29]} c5 {[%emt 0:01:10]} 13. Nf3 {[%emt 0:04:57]} Qc7 {[%emt 0:00:20]} 14. dxc5 {[%emt 0:00:45]} Bxc5+ {[%emt 0:00:29]} 15. Kh1 {[%emt 0:00:01]} g6 {[%emt 0:01:33]} 16. Qe2 {[%emt 0:00:10]} Bd7 {[%emt 0:03:47]} 17. Bxa6 {[%emt 0:01:17]} Bd6 {[%emt 0:00:29]} 18. Bb5 {[%emt 0:00:13]} Bxb5 {[%emt 0:00:57]} 19. Qxb5 {[%emt 0:00:02]} Nf5 {[%emt 0:01:15]} 20. Qe2 {[%emt 0:00:25]} Rfe8 {[%emt 0:00:12]} 21. Nd4 {[%emt 0:00:56]} Nxd4 {[%emt 0:00:09]} 22. cxd4 {[%emt 0:00:00]} Rac8 {[%emt 0:01:52]} 23. Be3 {[%emt 0:01:40]} Qc2 {[%emt 0:00:39]} 24. Rae1 {[%emt 0:01:30]} Qe4 {[%emt 0:00:51]} 25. Qa6 {[%emt 0:00:35]} Bf8 {[%emt 0:00:28]} 26. Bg1 {[%emt 0:00:11]} Qf5 {[%emt 0:00:02]} 27. h3 {[%emt 0:00:16]} Ra8 {[%emt 0:00:29]} 28. Qc6 {[%emt 0:00:10]} Rec8 {[%emt 0:00:04]} 29. Qd7 {[%emt 0:00:50]} Rd8 {[%emt 0:00:10]} 30. Qxe6+ {[%emt 0:00:07]} Qxe6 {[%emt 0:00:01]} 31. Rxe6 {[%emt 0:00:01]} Kf7 {[%emt 0:00:48]} 32. Rb6 {[%emt 0:00:06]} Rxa2 {[%emt 0:00:02]} 33. Rb7+ {[%emt 0:00:06]} Kg8 {[%emt 0:00:21]} 34. Re1 {[%emt 0:00:52]} Rc8 {[%emt 0:00:12]} 35. Re2 {[%emt 0:00:09]} Ra1 {[%emt 0:00:29]} 36. Kh2 {[%emt 0:00:02]} Bd6 {[%emt 0:00:00]} 37. g3 {[%emt 0:00:17]} Rcc1 {[%emt 0:00:26]} 38. Bf2 {[%emt 0:00:02]} Bf8 {[%emt 0:00:09]} 39. Kg2 {[%emt 0:00:07]} Rc6 {[%emt 0:00:09]} 40. Re8 {[%emt 0:00:12]} Rc2 {[%emt 0:00:13]} 41. Rbb8 {[%emt 0:00:05]} Rd1 {[%emt 0:00:06]} 42. Rxf8+ {[%emt 0:00:06]} Kg7 {[%emt 0:00:01]} 43. Rg8+ {[%emt 0:00:09]} Kh6 {[%emt 0:00:13]} 44. Rb3 {[%emt 0:00:06]} Rxd4 {[%emt 0:00:05]} 45. Rgb8 {[%emt 0:00:33]} Rdd2 {[%emt 0:00:06]} 46. Rf3 {[%emt 0:00:01]} d4 {[%emt 0:00:06]} 47. Rbb3 {[%emt 0:00:01]} Re2 {[%emt 0:00:25]} 48. Kf1 {[%emt 0:00:21]} Re4 {[%emt 0:00:15]} 49. Rb4 {[%emt 0:00:29]} f5 {[%emt 0:00:14]} 50. Rbb3 {[%emt 0:00:05]} Rc1+ {[%emt 0:00:07]} 51. Kg2 {[%emt 0:00:01]} Rc2 {[%emt 0:00:01]} 52. g4 {[%emt 0:00:08]} fxg4 {[%emt 0:00:18]} 53. hxg4 {[%emt 0:00:00]} Kg7 {[%emt 0:00:10]} 54. Rb7+ {[%emt 0:00:05]} Kf6 {[%emt 0:00:04]} 55. Kg3 {[%emt 0:00:07]} h5 {[%emt 0:00:04]} 56. Rb6+ {[%emt 0:00:07]} Kf7 {[%emt 0:00:02]} 57. g5 {[%emt 0:00:08]} Ree2 {[%emt 0:00:05]} 58. f5 {[%emt 0:00:20]} h4+ {[%emt 0:00:07]} 59. Kxh4 {[%emt 0:00:04]} Rxf2 {[%emt 0:00:02]} 60. Rb7+ {[%emt 0:00:36]} Kg8 {[%emt 0:00:12]} 61. Rb8+ {[%emt 0:00:17]} Kf7 {[%emt 0:00:07]} 62. Rb7+ {[%emt 0:00:07]} Kg8 {[%emt 0:00:02]} 63. Rxf2 {[%emt 0:00:01]} Rxf2 {[%emt 0:00:01]} 64. f6 {[%emt 0:00:02]} d3 {[%emt 0:00:21]} 65. Rd7 {[%emt 0:00:06]} Rxb2 {[%emt 0:00:11]} 66. Rxd3 {[%emt 0:00:02]} Rb4+ {[%emt 0:00:10]} 67. Kg3 {[%emt 0:00:05]} Kf7 {[%emt 0:00:51]} 68. Rd7+ {[%emt 0:00:10]} Kf8 {[%emt 0:00:11]} 69. Rg7 {[%emt 0:00:10]} Rb3+ {[%emt 0:00:02]} 70. Kf4 {[%emt 0:00:04]} Rb4+ {[%emt 0:00:01]} 71. Ke3 {[%emt 0:00:01]} Rb3+ {[%emt 0:00:12]} 72. Kd4 {[%emt 0:00:01]} Rb4+ {[%emt 0:00:01]} 73. Kc5 {[%emt 0:00:07]} Rh4 {[%emt 0:00:09]} 74. Rxg6 {[%emt 0:00:03]} Rh7 {[%emt 0:00:09]} 75. Kd6 {[%emt 0:01:38]} Kf7 {[%emt 0:00:02]} 76. Rh6 {[%emt 0:00:00]} Rxh6 {[%emt 0:00:03]} 77. gxh6 {[%emt 0:00:00]} Kxf6 {[%emt 0:00:01]} 78. h7 {[%emt 0:00:30]} 1/2-1/2

[Event "Pashayeva Memorial Rapid 2025"]
[Site "Baku"]
[Date "2025.03.02"]
[Round "1.2"]
[White "Mammadova, Gulnar"]
[Black "Mamedjarova, Turkan"]
[Result "1/2-1/2"]
[Annotator "ChessBase"]
[ECO "C47"]
[WhiteElo "2333"]
[BlackElo "2197"]
[PlyCount "26"]
[EventDate "2025.03.01"]
[EventType "tourn"]
[EventCountry "AZE"]
[SourceTitle "playchess.com"]
[Source "ChessBase"]
[SourceQuality "1"]
[TimeControl "900+10"]

1. e4 {[%emt 0:00:03]} e5 {[%emt 0:00:03]} 2. Nf3 {[%emt 0:00:02]} Nc6 {[%emt 0:00:09]} 3. Nc3 {[%emt 0:00:39]} Nf6 {[%emt 0:00:03]} 4. d4 {[%emt 0:00:19]} exd4 {[%emt 0:00:22]} 5. Nxd4 {[%emt 0:00:04]} Bb4 {[%emt 0:00:03]} 6. Nxc6 {[%emt 0:00:09]} bxc6 {[%emt 0:00:10]} 7. Bd3 {[%emt 0:00:03]} d5 {[%emt 0:00:36]} 8. exd5 {[%emt 0:00:10]} cxd5 {[%emt 0:00:35]} 9. O-O {[%emt 0:00:11]} O-O {[%emt 0:01:45]} 10. h3 {[%emt 0:01:01]} h6 {[%emt 0:13:04]} 11. Qf3 {[%emt 0:00:49]} c6 {[%emt 0:00:00]} 12. Bf4 {[%emt 0:01:05]} Bd6 {[%emt 0:00:00]} 13. Rad1 {[%emt 0:00:32]} Rb8 {[%emt 0:00:00]} 1/2-1/2

[Event "Pashayeva Memorial Rapid 2025"]
[Site "Baku"]
[Date "2025.03.02"]
[Round "1.3"]
[White "Serikbay, Assel"]
[Black "Aydin, Gulenay"]
[Result "0-1"]
[Annotator "ChessBase"]
[ECO "E62"]
[WhiteElo "2216"]
[BlackElo "2265"]
[PlyCount "158"]
[EventDate "2025.03.01"]
[EventType "tourn"]
[EventCountry "AZE"]
[SourceTitle "playchess.com"]
[Source "ChessBase"]
[SourceQuality "1"]
[TimeControl "900+10"]

1. d4 {[%emt 0:00:03]} Nf6 {[%emt 0:00:22]} 2. c4 {[%emt 0:00:03]} g6 {[%emt 0:00:02]} 3. g3 {[%emt 0:00:05]} Bg7 {[%emt 0:00:07]} 4. Bg2 {[%emt 0:00:02]} O-O {[%emt 0:00:17]} 5. Nc3 {[%emt 0:00:03]} d6 {[%emt 0:02:13]} 6. Nf3 {[%emt 0:00:04]} c6 {[%emt 0:00:52]} 7. e4 {[%emt 0:00:44]} Bg4 {[%emt 0:04:45]} 8. O-O {[%emt 0:00:19]} Nbd7 {[%emt 0:00:16]} 9. h3 {[%emt 0:00:26]} Bxf3 {[%emt 0:00:03]} 10. Bxf3 {[%emt 0:00:02]} e5 {[%emt 0:00:14]} 11. Be3 {[%emt 0:00:04]} exd4 {[%emt 0:02:11]} 12. Bxd4 {[%emt 0:00:02]} Re8 {[%emt 0:00:08]} 13. Bg2 {[%emt 0:00:18]} Qc7 {[%emt 0:00:51]} 14. Re1 {[%emt 0:00:18]} Rad8 {[%emt 0:00:02]} 15. f4 {[%emt 0:00:30]} a6 {[%emt 0:00:54]} 16. Rc1 {[%emt 0:00:56]} Qa5 {[%emt 0:00:44]} 17. a3 {[%emt 0:00:44]} b5 {[%emt 0:00:42]} 18. cxb5 {[%emt 0:00:25]} axb5 {[%emt 0:00:03]} 19. Bf2 {[%emt 0:00:11]} b4 {[%emt 0:00:20]} 20. axb4 {[%emt 0:00:33]} Qxb4 {[%emt 0:00:03]} 21. Qc2 {[%emt 0:00:12]} Rb8 {[%emt 0:00:57]} 22. Rb1 {[%emt 0:00:16]} Nc5 {[%emt 0:01:01]} 23. Kh2 {[%emt 0:03:13]} Nfd7 {[%emt 0:00:52]} 24. Red1 {[%emt 0:00:28]} Bf8 {[%emt 0:00:44]} 25. Be1 {[%emt 0:01:55]} Qb3 {[%emt 0:00:01]} 26. Qd2 {[%emt 0:00:05]} Nf6 {[%emt 0:00:08]} 27. Qd4 {[%emt 0:00:44]} Re6 {[%emt 0:00:24]} 28. f5 {[%emt 0:01:46]} Re5 {[%emt 0:00:06]} 29. fxg6 {[%emt 0:00:05]} hxg6 {[%emt 0:00:02]} 30. Qf2 {[%emt 0:00:28]} Nfxe4 {[%emt 0:00:11]} 31. Nxe4 {[%emt 0:00:01]} Nxe4 {[%emt 0:00:01]} 32. Bxe4 {[%emt 0:00:02]} Rxe4 {[%emt 0:00:01]} 33. Bc3 {[%emt 0:00:02]} Qe6 {[%emt 0:00:26]} 34. Re1 {[%emt 0:00:18]} Bg7 {[%emt 0:00:02]} 35. Rxe4 {[%emt 0:00:34]} Qxe4 {[%emt 0:00:02]} 36. Re1 {[%emt 0:00:01]} Qc4 {[%emt 0:00:21]} 37. Bxg7 {[%emt 0:00:51]} Kxg7 {[%emt 0:00:01]} 38. Rf1 {[%emt 0:00:01]} Re8 {[%emt 0:01:01]} 39. Qf6+ {[%emt 0:00:01]} Kg8 {[%emt 0:00:00]} 40. Rf2 {[%emt 0:00:05]} Qd5 {[%emt 0:00:00]} 41. Qc3 {[%emt 0:01:15]} c5 {[%emt 0:00:14]} 42. Rd2 {[%emt 0:00:24]} Qe6 {[%emt 0:00:09]} 43. Rf2 {[%emt 0:00:12]} Qe5 {[%emt 0:00:10]} 44. Qf3 {[%emt 0:00:10]} Re7 {[%emt 0:00:11]} 45. Rd2 {[%emt 0:00:10]} Kg7 {[%emt 0:00:08]} 46. h4 {[%emt 0:01:14]} Re6 {[%emt 0:00:03]} 47. Qd3 {[%emt 0:00:13]} Rf6 {[%emt 0:00:18]} 48. Re2 {[%emt 0:00:18]} Qf5 {[%emt 0:00:10]} 49. Qe3 {[%emt 0:00:07]} Qg4 {[%emt 0:00:11]} 50. Rd2 {[%emt 0:00:10]} Rf3 {[%emt 0:00:08]} 51. Qe1 {[%emt 0:00:01]} Rf6 {[%emt 0:00:11]} 52. Qe3 {[%emt 0:00:44]} Qe6 {[%emt 0:00:09]} 53. Qc3 {[%emt 0:00:03]} Qe1 {[%emt 0:00:14]} 54. b3 {[%emt 0:00:54]} Kg8 {[%emt 0:00:06]} 55. Qxf6 {[%emt 0:00:07]} Qxd2+ {[%emt 0:00:01]} 56. Kh3 {[%emt 0:00:00]} Qd5 {[%emt 0:00:13]} 57. Qc3 {[%emt 0:00:09]} Qh1+ {[%emt 0:00:13]} 58. Kg4 {[%emt 0:00:01]} Qf1 {[%emt 0:00:08]} 59. Qc2 {[%emt 0:00:28]} Qf6 {[%emt 0:00:18]} 60. h5 {[%emt 0:00:27]} Qd4+ {[%emt 0:00:08]} 61. Kh3 {[%emt 0:00:07]} gxh5 {[%emt 0:00:04]} 62. Kh2 {[%emt 0:00:07]} Qe3 {[%emt 0:00:15]} 63. Qf5 {[%emt 0:00:09]} Qe2+ {[%emt 0:00:08]} 64. Kg1 {[%emt 0:00:02]} Qg4 {[%emt 0:00:08]} 65. Qd3 {[%emt 0:00:19]} Qe6 {[%emt 0:00:19]} 66. Kf2 {[%emt 0:00:21]} Kf8 {[%emt 0:00:06]} 67. Qf3 {[%emt 0:00:06]} Qe5 {[%emt 0:00:08]} 68. Qa8+ {[%emt 0:00:25]} Kg7 {[%emt 0:00:02]} 69. Qc6 {[%emt 0:00:04]} Qd4+ {[%emt 0:00:11]} 70. Kg2 {[%emt 0:00:03]} d5 {[%emt 0:00:10]} 71. Qd6 {[%emt 0:00:18]} Qe4+ {[%emt 0:00:11]} 72. Kh2 {[%emt 0:00:07]} c4 {[%emt 0:00:13]} 73. bxc4 {[%emt 0:00:01]} dxc4 {[%emt 0:00:01]} 74. Qd8 {[%emt 0:00:03]} Qe5 {[%emt 0:00:13]} 75. Qc8 {[%emt 0:00:27]} c3 {[%emt 0:00:13]} 76. Qc4 {[%emt 0:00:02]} Kg6 {[%emt 0:00:22]} 77. Qd3+ {[%emt 0:00:14]} Kg7 {[%emt 0:00:05]} 78. Qc4 {[%emt 0:00:01]} Qe3 {[%emt 0:00:03]} 79. Kh3 {[%emt 0:00:06]} Qe6+ {[%emt 0:00:05]} 0-1

[Event "Pashayeva Memorial Rapid 2025"]
[Site "Baku"]
[Date "2025.03.02"]
[Round "1.4"]
[White "Beydullayeva, Govhar"]
[Black "Fataliyeva, Ulviyya"]
[Result "1/2-1/2"]
[Annotator "ChessBase"]
[ECO "D37"]
[WhiteElo "2404"]
[BlackElo "2381"]
[PlyCount "55"]
[EventDate "2025.03.01"]
[EventType "tourn"]
[EventCountry "AZE"]
[SourceTitle "playchess.com"]
[Source "ChessBase"]
[SourceQuality "1"]
[TimeControl "900+10"]

1. d4 {[%emt 0:00:03]} Nf6 {[%emt 0:00:01]} 2. c4 {[%emt 0:00:02]} e6 {[%emt 0:00:02]} 3. Nf3 {[%emt 0:00:02]} d5 {[%emt 0:00:01]} 4. Nc3 {[%emt 0:00:02]} Be7 {[%emt 0:00:02]} 5. Bf4 {[%emt 0:00:07]} O-O {[%emt 0:00:06]} 6. e3 {[%emt 0:00:25]} Nbd7 {[%emt 0:00:05]} 7. a3 {[%emt 0:00:53]} c5 {[%emt 0:00:06]} 8. cxd5 {[%emt 0:00:03]} Nxd5 {[%emt 0:00:02]} 9. Nxd5 {[%emt 0:00:02]} exd5 {[%emt 0:00:02]} 10. dxc5 {[%emt 0:00:08]} Nxc5 {[%emt 0:00:02]} 11. Be5 {[%emt 0:00:31]} Bf5 {[%emt 0:00:02]} 12. Be2 {[%emt 0:00:31]} Bf6 {[%emt 0:00:02]} 13. Rc1 {[%emt 0:00:18]} Rc8 {[%emt 0:00:02]} 14. O-O {[%emt 0:01:29]} Bxe5 {[%emt 0:00:16]} 15. Nxe5 {[%emt 0:00:01]} Qf6 {[%emt 0:00:10]} 16. b4 {[%emt 0:01:15]} Qxe5 {[%emt 0:00:16]} 17. bxc5 {[%emt 0:00:03]} Rfd8 {[%emt 0:02:05]} 18. Qd4 {[%emt 0:00:33]} Qxd4 {[%emt 0:00:15]} 19. exd4 {[%emt 0:00:01]} b6 {[%emt 0:00:30]} 20. Ba6 {[%emt 0:00:32]} Rc6 {[%emt 0:00:01]} 21. Bb5 {[%emt 0:00:07]} Rc7 {[%emt 0:00:02]} 22. cxb6 {[%emt 0:01:00]} Rb7 {[%emt 0:00:05]} 23. Rc6 {[%emt 0:03:05]} Rxb6 {[%emt 0:00:02]} 24. Rxb6 {[%emt 0:00:01]} axb6 {[%emt 0:00:01]} 25. Rc1 {[%emt 0:00:03]} Ra8 {[%emt 0:00:02]} 26. a4 {[%emt 0:00:56]} Rc8 {[%emt 0:00:01]} 27. Rxc8+ {[%emt 0:00:07]} Bxc8 {[%emt 0:00:02]} 28. Kf1 {[%emt 0:00:02]} 1/2-1/2

[Event "Pashayeva Memorial Rapid 2025"]
[Site "Baku"]
[Date "2025.03.02"]
[Round "1.5"]
[White "Mammadzada, Gunay"]
[Black "Yakubbaeva, Nilufar"]
[Result "0-1"]
[Annotator "ChessBase"]
[ECO "A07"]
[WhiteElo "2412"]
[BlackElo "2187"]
[PlyCount "76"]
[EventDate "2025.03.01"]
[EventType "tourn"]
[EventCountry "AZE"]
[SourceTitle "playchess.com"]
[Source "ChessBase"]
[SourceQuality "1"]
[TimeControl "900+10"]

1. Nf3 {[%emt 0:00:09]} d5 {[%emt 0:00:04]} 2. g3 {[%emt 0:00:03]} c6 {[%emt 0:00:04]} 3. Bg2 {[%emt 0:00:02]} Bg4 {[%emt 0:00:11]} 4. O-O {[%emt 0:00:05]} e6 {[%emt 0:00:03]} 5. h3 {[%emt 0:00:03]} Bh5 {[%emt 0:00:02]} 6. c4 {[%emt 0:00:01]} Bd6 {[%emt 0:00:08]} 7. d4 {[%emt 0:01:56]} Nf6 {[%emt 0:00:15]} 8. Nc3 {[%emt 0:01:22]} O-O {[%emt 0:00:18]} 9. cxd5 {[%emt 0:00:41]} exd5 {[%emt 0:00:21]} 10. Ne5 {[%emt 0:00:27]} Bg6 {[%emt 0:03:03]} 11. Bg5 {[%emt 0:01:35]} Bf5 {[%emt 0:01:00]} 12. Qb3 {[%emt 0:00:57]} Qb6 {[%emt 0:01:01]} 13. Qxb6 {[%emt 0:00:57]} axb6 {[%emt 0:00:02]} 14. Bxf6 {[%emt 0:00:31]} gxf6 {[%emt 0:00:02]} 15. Nf3 {[%emt 0:00:23]} Re8 {[%emt 0:01:13]} 16. Nh4 {[%emt 0:00:08]} Bg6 {[%emt 0:01:02]} 17. f4 {[%emt 0:03:15]} Nd7 {[%emt 0:01:31]} 18. Nxg6 {[%emt 0:01:25]} hxg6 {[%emt 0:02:01]} 19. e4 {[%emt 0:00:01]} dxe4 {[%emt 0:00:16]} 20. Nxe4 {[%emt 0:00:01]} Be7 {[%emt 0:00:08]} 21. f5 {[%emt 0:00:03]} Kg7 {[%emt 0:00:34]} 22. a3 {[%emt 0:00:42]} b5 {[%emt 0:00:13]} 23. d5 {[%emt 0:00:36]} cxd5 {[%emt 0:00:25]} 24. Nc3 {[%emt 0:00:01]} Bc5+ {[%emt 0:00:57]} 25. Kh2 {[%emt 0:00:10]} d4 {[%emt 0:00:47]} 26. Nxb5 {[%emt 0:01:36]} Re2 {[%emt 0:00:03]} 27. b4 {[%emt 0:00:01]} Bb6 {[%emt 0:00:22]} 28. Rae1 {[%emt 0:01:12]} Rae8 {[%emt 0:01:44]} 29. Rxe2 {[%emt 0:00:02]} Rxe2 {[%emt 0:00:01]} 30. fxg6 {[%emt 0:00:13]} fxg6 {[%emt 0:00:13]} 31. Nd6 {[%emt 0:00:57]} Ra2 {[%emt 0:01:28]} 32. Rd1 {[%emt 0:00:25]} Ne5 {[%emt 0:00:12]} 33. Kh1 {[%emt 0:00:16]} Rxa3 {[%emt 0:00:07]} 34. Nc8 {[%emt 0:00:01]} Bc7 {[%emt 0:00:11]} 35. Rxd4 {[%emt 0:00:17]} Rxg3 {[%emt 0:00:05]} 36. Rd2 {[%emt 0:00:22]} Rb3 {[%emt 0:00:04]} 37. Nd6 {[%emt 0:00:10]} Rb1+ {[%emt 0:00:03]} 38. Kh2 {[%emt 0:00:02]} Nc4 {[%emt 0:00:02]} 0-1

[Event "Pashayeva Memorial Rapid 2025"]
[Site "Baku"]
[Date "2025.03.02"]
[Round "2.3"]
[White "Aydin, Gulenay"]
[Black "Beydullayeva, Govhar"]
[Result "0-1"]
[Annotator "TA"]
[ECO "C47"]
[WhiteElo "2265"]
[BlackElo "2404"]
[PlyCount "90"]
[EventDate "2025.03.01"]
[EventType "tourn"]
[EventCountry "AZE"]
[SourceTitle "playchess.com"]
[Source "ChessBase"]
[SourceQuality "1"]
[TimeControl "900+10"]

{[%evp 17,90,0,2,0,2,-6,3,-6,21,21,20,20,31,18,23,19,21,23,50,38,59,57,52,56,66,45,47,43,35,33,34,0,51,27,61,62,61,49,56,37,41,27,149,149,179,58,96,102,111,0,179,-29984,-29985,-29985,-29986,-29986,-29987,-29987,-29988,-29988,-5185,-29969,-29961,-29984,-29985,-29985,-29986,-29986,-29987,-29986,-29987,-29989,-29981,-29961,-29961]} 1. e4 {[%emt 0:00:04]} e5 {[%emt 0:00:03]} 2. Nf3 {[%emt 0:00:10]} Nc6 {[%emt 0:00:00]} 3. Nc3 {[%emt 0:00:10]} Nf6 {[%emt 0:00:03]} 4. d4 {[%emt 0:00:21]} exd4 {[%emt 0:00:02]} 5. Nxd4 {[%emt 0:00:02]} Bb4 {[%emt 0:00:01]} 6. Nxc6 {[%emt 0:00:02]} bxc6 {[%emt 0:00:00]} 7. Bd3 {[%emt 0:00:02]} O-O {[%emt 0:00:06]} 8. O-O {[%emt 0:00:02]} d5 {[%emt 0:00:01]} 9. exd5 {[%emt 0:00:10]} cxd5 {[%emt 0:00:01]} 10. h3 {[%emt 0:00:05] is recently more successful than 10.Bg5. Inhibits Bg4. C47: Scotch Four Knights and Four Knights with 4 g3.} c6 {[%emt 0:00:11]} 11. Qf3 {[%emt 0:00:04]} Bd6 {[%emt 0:01:36]} 12. Re1 {[%emt 0:00:57] The position is equal.} Rb8 {[%emt 0:00:31]} 13. b3 {[%emt 0:00:09]} Nd7 {[%emt 0:03:50]} 14. Bf4 {[%emt 0:04:55] A sharp opening Dodges Ne5} Qf6 {[%emt 0:01:47]} 15. Bxd6 {[%emt 0:01:08]} Qxd6 {[%emt 0:00:01]} 16. Rad1 {[%emt 0:00:48]} Nc5 {[%emt 0:01:35]} 17. Ne2 {[%emt 0:03:12]} Nxd3 $146 {[%emt 0:00:26]} ({Predecessor:} 17... Re8 18. Nd4 Bd7 19. Bf1 Rxe1 20. Rxe1 Ne4 21. Bd3 Qb4 22. Qe3 Re8 23. Nf3 Nd6 {½-½ Robson,R (2656)-Nakamura,H (2798) USA-ch Saint Louis 2015 (10)}) 18. Qxd3 {[%emt 0:00:03]} Re8 {[%emt 0:03:44]} 19. c4 {[%emt 0:00:48]} Be6 {[%emt 0:02:00]} 20. Nc3 {[%emt 0:01:51]} h6 {[%emt 0:00:30]} 21. cxd5 {[%emt 0:01:44]} Bxd5 {[%emt 0:00:33]} 22. Rxe8+ {[%emt 0:01:25]} Rxe8 {[%emt 0:00:01]} 23. Nxd5 {[%emt 0:00:09]} cxd5 $14 {[%emt 0:00:02][%mdl 4096] Endgame KQR-KQR} 24. g3 {[%emt 0:00:18][%cal Od3d4]} (24. Qxd5 $2 Re1+ 25. Rxe1 Qxd5 $19) 24... Re5 {[%emt 0:00:55]} ({Better is} 24... d4 $11) 25. Kg2 {[%emt 0:00:14]} Qe7 {[%emt 0:00:40]} 26. Rd2 {[%emt 0:00:14]} h5 {[%emt 0:00:03]} 27. h4 {[%emt 0:00:02]} g6 {[%emt 0:00:02]} 28. Qd4 {[%emt 0:00:16]} Qc7 $1 {[%emt 0:00:48] Inhibits Rc2.} 29. Rd3 {[%emt 0:00:10]} Qe7 {[%emt 0:00:14] [#]} (29... Qc2 $1 $11) 30. Rc3 $1 $16 {[%emt 0:00:04]} Qe6 {[%emt 0:00:10] Dodges Rc8+} 31. Rc2 {[%emt 0:00:26]} (31. Qxa7 $18 {and a4 should not be overlooked} Re4 32. Rd3) 31... Qf5 {[%emt 0:00:11]} 32. Rc7 {[%emt 0:00:10]} Re4 {[%emt 0:00:10]} 33. Qxa7 {[%emt 0:00:01]} (33. Qd3 $16) 33... Re2 $2 {[%emt 0:00:04]} (33... Rxh4 $1 $11 34. Qb8+ (34. gxh4 Qg4+ 35. Kh1 Qxh4+ 36. Kg2 Qg4+ 37. Kh1 Qh3+ 38. Kg1 Qg4+ 39. Kh2 Qh4+ 40. Kg2 Qg4+ 41. Kf1 Qd1+ 42. Kg2 Qg4+ $11) 34... Kg7 35. Rxf7+ (35. gxh4 Qg4+ 36. Kh1 Qf3+ 37. Kg1 Qg4+ 38. Kf1 Qd1+ 39. Kg2 Qg4+ 40. Kh1 Qxh4+ 41. Kg2 Qg4+ 42. Kh1 Qf3+ 43. Kg1 Qg4+ 44. Kh2 Qf4+ 45. Kg1 Qg4+ 46. Kh2 Qh4+ 47. Kg1 Qg4+ $11) 35... Kxf7 36. gxh4 (36. Qc7+ Ke8 $11) 36... Qe4+ 37. Kg1 d4) 34. Rd7 $4 {[%emt 0:00:09][%mdl 8192] [#]} (34. Re7 $18 Rd2 35. Qe3) 34... Qe4+ $1 {[%emt 0:00:06]} 35. Kh2 {[%emt 0:00:19]} Re1 {[%emt 0:00:13][%csl Ge4][%cal Re1h1] Active counter play!} 36. Qb8+ {[%emt 0:00:12]} Kg7 {[%emt 0:00:04][%csl Ge1][%cal Re4h1]} 37. Rxf7+ {[%emt 0:00:12]} Kxf7 {[%emt 0:00:01][%csl Ge4][%cal Re1h1]} 38. Qc7+ {[%emt 0:00:05]} Qe7 {[%emt 0:00:02]} (38... Kg8 $142 39. Qb8+ Kg7 40. Qc7+ Kh6 41. Qf4+ Qxf4 42. gxf4 d4 43. Kg2 d3 44. f5 gxf5 (44... d2 {leads to mate.} 45. f6 d1=Q 46. f7 Qg4+ 47. Kh2 Qxh4+ 48. Kg2 Kg5 49. f8=Q Qh1+ 50. Kg3 h4#) 45. Kg3 d2 46. Kh2 d1=Q (46... d1=B $2 47. Kg3 $19) 47. Kg2 Qg4+ 48. Kh2 Qf3 49. b4 Rh1#) 39. Qc6 {[%emt 0:00:08]} Qe6 {[%emt 0:00:27] Black mates.} 40. Qc7+ {[%emt 0:00:03]} Kg8 {[%emt 0:00:04]} 41. Qd8+ {[%emt 0:00:22]} Kg7 {[%emt 0:00:01]} 42. Qc7+ {[%emt 0:00:10]} Qe7 {[%emt 0:00:01]} 43. Qc3+ {[%emt 0:00:01]} Qe5 {[%emt 0:00:01]} 44. Qc6 {[%emt 0:00:05]} Qf6 {[%emt 0:00:29]} 45. Qc7+ {[%emt 0:00:18]} Re7 {[%emt 0:00:02] Weighted Error Value: White=0.44/Black=0.36  Loses game:     	---       	Black=1      Missed win:     	White=1     	---        Mistake:       	White=2     	Black=2      Inaccurate:     	White=1     	Black=4      OK:         	White=12    	Black=7      Strong:       	White=1     	Black=2} 0-1